[Event "*** Titled Tuesday Blitz"]
[Site "Chess.com"]
[Date "2020.04.14"]
[Round "8"]
[White "FCChelsea14"]
[Black "biesiadnik"]
[Result "1-0"]
[WhiteElo "2803"]
[BlackElo "2595"]
[TimeControl "180+1"]
[EndTime "11:31:40 PDT"]
[Termination "FCChelsea14 won by resignation"]

1. d4 {[%clk 0:03:00.9]} 1... d5 {[%clk 0:03:00]} 2. Nf3 {[%clk 0:03:00.6]} 2...
Nf6 {[%clk 0:02:59.8]} 3. c4 {[%clk 0:03:00.7]} 3... e6 {[%clk 0:03:00.1]} 4. g3
{[%clk 0:03:00.7]} 4... Be7 {[%clk 0:03:00.6]} 5. Bg2 {[%clk 0:03:01]} 5... O-O
{[%clk 0:03:00.4]} 6. O-O {[%clk 0:03:01.1]} 6... dxc4 {[%clk 0:03:00.7]} 7. Qc2
{[%clk 0:03:00.9]} 7... a6 {[%clk 0:03:00.4]} 8. a4 {[%clk 0:03:01]} 8... Bd7
{[%clk 0:03:00.7]} 9. Rd1 {[%clk 0:03:01.2]} 9... Bc6 {[%clk 0:03:00.7]} 10. Bg5
{[%clk 0:03:01.2]} 10... a5 {[%clk 0:02:48.8]} 11. Nbd2 {[%clk 0:03:00]} 11...
Na6 {[%clk 0:02:47.2]} 12. Nxc4 {[%clk 0:02:59.8]} 12... Nb4 {[%clk 0:02:47.3]}
13. Qb3 {[%clk 0:02:51.7]} 13... Bd5 {[%clk 0:02:40.6]} 14. Nfe5 {[%clk
0:02:48.6]} 14... h6 {[%clk 0:02:34.8]} 15. Bxf6 {[%clk 0:02:45.4]} 15... Bxf6
{[%clk 0:02:33.4]} 16. Qc3 {[%clk 0:02:09.4]} 16... Bxg2 {[%clk 0:02:27.9]} 17.
Kxg2 {[%clk 0:02:08.8]} 17... c6 {[%clk 0:01:38.1]} 18. e4 {[%clk 0:02:06.2]}
18... Qc7 {[%clk 0:01:38]} 19. Rd2 {[%clk 0:02:05]} 19... Rfd8 {[%clk
0:01:37.5]} 20. Rad1 {[%clk 0:02:04.6]} 20... Rac8 {[%clk 0:01:21.4]} 21. Ng4
{[%clk 0:02:01.5]} 21... Be7 {[%clk 0:01:18.8]} 22. Nge3 {[%clk 0:02:01.4]}
22... Bf6 {[%clk 0:01:12.9]} 23. Ng4 {[%clk 0:01:58.3]} 23... Be7 {[%clk
0:01:12.5]} 24. h4 {[%clk 0:01:57.2]} 24... Bf8 {[%clk 0:00:46.6]} 25. Qf3
{[%clk 0:01:56.1]} 25... Qe7 {[%clk 0:00:42.9]} 26. Nxa5 {[%clk 0:01:53.1]}
26... Ra8 {[%clk 0:00:41.1]} 27. Nb3 {[%clk 0:01:45.2]} 27... Rxa4 {[%clk
0:00:40.4]} 28. Nc5 {[%clk 0:01:45.3]} 28... Raa8 {[%clk 0:00:40.1]} 29. Ne5
{[%clk 0:01:36.3]} 29... Na6 {[%clk 0:00:38.3]} 30. Nb3 {[%clk 0:01:32.9]} 30...
g6 {[%clk 0:00:35.4]} 31. h5 {[%clk 0:01:31.6]} 31... g5 {[%clk 0:00:33.5]} 32.
Ng4 {[%clk 0:01:30.7]} 32... Bg7 {[%clk 0:00:33.8]} 33. e5 {[%clk 0:01:29.6]}
33... Nb4 {[%clk 0:00:33.5]} 34. Nc5 {[%clk 0:01:25.6]} 34... Nd5 {[%clk
0:00:33]} 35. Ne4 {[%clk 0:01:25.6]} 35... Ra4 {[%clk 0:00:29.1]} 36. Nd6 {[%clk
0:01:21.5]} 36... Rxd6 {[%clk 0:00:26.4]} 37. exd6 {[%clk 0:01:21.1]} 37... Qxd6
{[%clk 0:00:27.3]} 38. Ne3 {[%clk 0:01:20.8]} 38... Qb4 {[%clk 0:00:24.8]} 39.
Nxd5 {[%clk 0:01:19.5]} 39... cxd5 {[%clk 0:00:25.7]} 40. Rc2 {[%clk 0:01:13.1]}
40... Ra8 {[%clk 0:00:24]} 41. Qc3 {[%clk 0:01:10.9]} 41... Qxc3 {[%clk
0:00:23]} 42. bxc3 {[%clk 0:01:10.6]} 42... Rc8 {[%clk 0:00:22.2]} 43. Kf3
{[%clk 0:01:08.8]} 43... Rc4 {[%clk 0:00:22]} 44. Ke3 {[%clk 0:01:08.6]} 44...
b5 {[%clk 0:00:22.4]} 45. Rb1 {[%clk 0:01:08.1]} 45... Bxd4+ {[%clk 0:00:22.1]}
46. Kd3 {[%clk 0:01:06.4]} 46... Bf6 {[%clk 0:00:17.9]} 47. Rxb5 {[%clk
0:01:06.1]} 47... Kg7 {[%clk 0:00:18.5]} 48. Rb4 {[%clk 0:01:05.3]} 48... Rc6
{[%clk 0:00:18.6]} 49. c4 {[%clk 0:01:05.1]} 49... dxc4+ {[%clk 0:00:18.9]} 50.
Rbxc4 {[%clk 0:01:03.8]} 50... Rd6+ {[%clk 0:00:19.4]} 51. Ke2 {[%clk
0:01:03.4]} 51... Rd5 {[%clk 0:00:19.6]} 52. Rc7 {[%clk 0:01:01.8]} 52... Be5
{[%clk 0:00:19.6]} 53. Rb7 {[%clk 0:00:58.8]} 53... Bd4 {[%clk 0:00:19.6]} 54.
Kf3 {[%clk 0:00:56.5]} 54... Rf5+ {[%clk 0:00:19.2]} 55. Kg2 {[%clk 0:00:56.8]}
55... g4 {[%clk 0:00:18.6]} 56. Rb4 {[%clk 0:00:54.9]} 56... e5 {[%clk
0:00:18.9]} 57. Re2 {[%clk 0:00:34.5]} 57... Rxh5 {[%clk 0:00:18.1]} 58. Re4
{[%clk 0:00:34.7]} 58... Rg5 {[%clk 0:00:18.3]} 59. Rb7 {[%clk 0:00:32.2]} 59...
h5 {[%clk 0:00:18.2]} 60. f3 {[%clk 0:00:32.1]} 60... gxf3+ {[%clk 0:00:17.8]}
61. Kxf3 {[%clk 0:00:33]} 61... Rf5+ {[%clk 0:00:18.3]} 62. Kg2 {[%clk
0:00:33.3]} 62... Kg6 {[%clk 0:00:18.6]} 63. Rc7 {[%clk 0:00:32.2]} 63... Rf2+
{[%clk 0:00:18.2]} 64. Kh3 {[%clk 0:00:31.8]} 64... Rd2 {[%clk 0:00:18.4]} 65.
Rc6+ {[%clk 0:00:31.8]} 65... Kg5 {[%clk 0:00:18.1]} 66. Rc8 {[%clk 0:00:30]}
66... f5 {[%clk 0:00:17.8]} 67. Re1 {[%clk 0:00:27.9]} 67... Rd3 {[%clk
0:00:18.2]} 68. Kg2 {[%clk 0:00:27.3]} 68... Rd2+ {[%clk 0:00:18.4]} 69. Kh3
{[%clk 0:00:27]} 69... Rd3 {[%clk 0:00:18.7]} 70. Rg8+ {[%clk 0:00:26.6]} 70...
Kf6 {[%clk 0:00:17.8]} 71. Kg2 {[%clk 0:00:26.9]} 71... Rd2+ {[%clk 0:00:16.5]}
72. Kh3 {[%clk 0:00:26.9]} 72... Rd3 {[%clk 0:00:16.9]} 73. Rf1 {[%clk
0:00:25.4]} 73... f4 {[%clk 0:00:16.9]} 74. Kg2 {[%clk 0:00:22.5]} 74... Rd2+
{[%clk 0:00:16.8]} 75. Kh3 {[%clk 0:00:22.2]} 75... Rd3 {[%clk 0:00:17.2]} 76.
Kh4 {[%clk 0:00:21]} 76... Kf7 {[%clk 0:00:17.1]} 77. Rg5 {[%clk 0:00:19.4]}
77... f3 {[%clk 0:00:11.5]} 78. Rf5+ {[%clk 0:00:19]} 78... Kg6 {[%clk
0:00:11.2]} 79. R5xf3 {[%clk 0:00:19.9]} 79... Rxf3 {[%clk 0:00:11.3]} 80. Rxf3
{[%clk 0:00:20.4]} 80... Bc3 {[%clk 0:00:11.6]} 81. Rxc3 {[%clk 0:00:19.3]} 1-0

[Event "*** Titled Tuesday Blitz"]
[Site "Chess.com"]
[Date "2020.04.14"]
[Round "8"]
[White "TudorAnton"]
[Black "SlavenPastar"]
[Result "1-0"]
[WhiteElo "2593"]
[BlackElo "2420"]
[TimeControl "180+1"]
[EndTime "11:31:41 PDT"]
[Termination "TudorAnton won on time"]

1. d3 {[%clk 0:03:00.9]} 1... d5 {[%clk 0:02:58.2]} 2. f4 {[%clk 0:02:59.1]}
2... Nf6 {[%clk 0:02:57.4]} 3. Nf3 {[%clk 0:02:59.7]} 3... b6 {[%clk 0:02:57.9]}
4. g3 {[%clk 0:02:59.8]} 4... Bb7 {[%clk 0:02:57.3]} 5. Bg2 {[%clk 0:02:57.8]}
5... Nbd7 {[%clk 0:02:57.8]} 6. O-O {[%clk 0:02:57.6]} 6... e6 {[%clk
0:02:56.7]} 7. Nbd2 {[%clk 0:02:53.1]} 7... Bd6 {[%clk 0:02:54.1]} 8. Qe1 {[%clk
0:02:45.3]} 8... O-O {[%clk 0:02:51.1]} 9. c3 {[%clk 0:02:45.6]} 9... e5 {[%clk
0:02:48.5]} 10. fxe5 {[%clk 0:02:43.5]} 10... Nxe5 {[%clk 0:02:47]} 11. Nxe5
{[%clk 0:02:43.7]} 11... Bxe5 {[%clk 0:02:47]} 12. e4 {[%clk 0:02:35.1]} 12...
dxe4 {[%clk 0:02:43.1]} 13. Nxe4 {[%clk 0:02:36]} 13... Nxe4 {[%clk 0:02:38.6]}
14. Bxe4 {[%clk 0:02:35.1]} 14... Bxe4 {[%clk 0:02:31.8]} 15. Qxe4 {[%clk
0:02:36]} 15... Qd6 {[%clk 0:02:15.3]} 16. d4 {[%clk 0:02:33.6]} 16... Bf6
{[%clk 0:02:13.7]} 17. Bf4 {[%clk 0:02:32.8]} 17... Qd7 {[%clk 0:02:14.1]} 18.
Qb7 {[%clk 0:02:23.5]} 18... Rfc8 {[%clk 0:02:02.9]} 19. a4 {[%clk 0:02:22.4]}
19... a5 {[%clk 0:01:59.6]} 20. Rfe1 {[%clk 0:02:06.3]} 20... Rab8 {[%clk
0:01:32.8]} 21. Qf3 {[%clk 0:02:06.8]} 21... Re8 {[%clk 0:01:30.2]} 22. b3
{[%clk 0:02:05.3]} 22... Be7 {[%clk 0:01:18.4]} 23. Re4 {[%clk 0:01:57.7]} 23...
Bd6 {[%clk 0:01:16.5]} 24. Bxd6 {[%clk 0:01:56.2]} 24... Qxd6 {[%clk 0:01:14.2]}
25. Rae1 {[%clk 0:01:55.4]} 25... Rxe4 {[%clk 0:01:13.9]} 26. Qxe4 {[%clk
0:01:56.3]} 26... Rf8 {[%clk 0:01:09.8]} 27. Re3 {[%clk 0:01:52.3]} 27... Qa3
{[%clk 0:01:06.5]} 28. c4 {[%clk 0:01:51.9]} 28... Qc1+ {[%clk 0:01:05.4]} 29.
Kg2 {[%clk 0:01:52.1]} 29... Qb2+ {[%clk 0:01:03.8]} 30. Kh3 {[%clk 0:01:49.8]}
30... g6 {[%clk 0:00:57.9]} 31. d5 {[%clk 0:01:47.8]} 31... Qf6 {[%clk
0:00:54.6]} 32. Qe5 {[%clk 0:01:45.3]} 32... Qf1+ {[%clk 0:00:54.2]} 33. Kh4
{[%clk 0:01:43.3]} 33... h6 {[%clk 0:00:49.4]} 34. Qxc7 {[%clk 0:01:23.6]} 34...
Qf6+ {[%clk 0:00:35.5]} 35. Kh3 {[%clk 0:01:19.5]} 35... Qf1+ {[%clk 0:00:35.6]}
36. Kh4 {[%clk 0:01:19.4]} 36... Qf2 {[%clk 0:00:27]} 37. Qe5 {[%clk 0:01:07.9]}
37... Qxh2+ {[%clk 0:00:26.2]} 38. Kg4 {[%clk 0:01:08.8]} 38... Qg2 {[%clk
0:00:11.6]} 39. Re2 {[%clk 0:00:51.6]} 39... Qh1 {[%clk 0:00:06.2]} 40. Kf4
{[%clk 0:00:49.8]} 40... Qf1+ {[%clk 0:00:05.9]} 41. Ke3 {[%clk 0:00:49.5]}
41... Qc1+ {[%clk 0:00:06.3]} 42. Kd3 {[%clk 0:00:46.1]} 42... Qb1+ {[%clk
0:00:05.8]} 43. Kc3 {[%clk 0:00:46]} 43... Qc1+ {[%clk 0:00:05.9]} 44. Kd4
{[%clk 0:00:43.5]} 44... Qd1+ {[%clk 0:00:05.8]} 45. Ke3 {[%clk 0:00:43.3]}
45... Qxb3+ {[%clk 0:00:05.8]} 46. Kf2 {[%clk 0:00:43.7]} 46... Qxc4 {[%clk
0:00:06.2]} 47. Re3 {[%clk 0:00:42.3]} 47... Qc2+ {[%clk 0:00:06.2]} 48. Kf3
{[%clk 0:00:42.6]} 48... Qc1 {[%clk 0:00:05.7]} 49. Kg2 {[%clk 0:00:37.4]} 49...
Qd2+ {[%clk 0:00:05.4]} 50. Re2 {[%clk 0:00:37.6]} 50... Qd1 {[%clk 0:00:05.8]}
51. Re1 {[%clk 0:00:34.6]} 51... Qd2+ {[%clk 0:00:05.4]} 52. Re2 {[%clk
0:00:35.1]} 52... Qd1 {[%clk 0:00:05.8]} 53. Re4 {[%clk 0:00:34.4]} 53... Rd8
{[%clk 0:00:05]} 54. Rd4 {[%clk 0:00:35]} 54... Qc2+ {[%clk 0:00:05]} 55. Kh3
{[%clk 0:00:35.4]} 55... Qc1 {[%clk 0:00:04.8]} 56. Kg2 {[%clk 0:00:34.6]} 56...
Qc2+ {[%clk 0:00:05.1]} 57. Kf3 {[%clk 0:00:34.4]} 57... Qc3+ {[%clk 0:00:04.2]}
58. Kf2 {[%clk 0:00:34.2]} 58... Qc2+ {[%clk 0:00:04.5]} 59. Ke3 {[%clk
0:00:34.3]} 59... Qc3+ {[%clk 0:00:04.9]} 60. Ke2 {[%clk 0:00:33.9]} 60... Qc2+
{[%clk 0:00:05.6]} 61. Rd2 {[%clk 0:00:34.4]} 61... Qc4+ {[%clk 0:00:05.6]} 62.
Kf2 {[%clk 0:00:33.7]} 62... Qb3 {[%clk 0:00:05.2]} 63. d6 {[%clk 0:00:32.8]}
63... Qxa4 {[%clk 0:00:05]} 64. Kg2 {[%clk 0:00:24.9]} 64... Qd7 {[%clk
0:00:04.4]} 65. Qf4 {[%clk 0:00:22.7]} 65... Kg7 {[%clk 0:00:02.8]} 66. Qd4+
{[%clk 0:00:22.4]} 66... Kg8 {[%clk 0:00:03.7]} 67. Qxb6 {[%clk 0:00:23.1]}
67... Qc8 {[%clk 0:00:03]} 68. Qxa5 {[%clk 0:00:21.3]} 68... Qa8+ {[%clk
0:00:03.9]} 69. Qxa8 {[%clk 0:00:20.6]} 69... Rxa8 {[%clk 0:00:04.8]} 70. Kf3
{[%clk 0:00:21.1]} 70... Rd8 {[%clk 0:00:05.3]} 71. Ke4 {[%clk 0:00:21.5]} 71...
f6 {[%clk 0:00:05.5]} 72. Kd5 {[%clk 0:00:21.8]} 72... Kf7 {[%clk 0:00:06]} 73.
Rb2 {[%clk 0:00:22]} 73... Rd7 {[%clk 0:00:06.4]} 74. Rb8 {[%clk 0:00:22.6]}
74... f5 {[%clk 0:00:06.5]} 75. Rh8 {[%clk 0:00:22.9]} 75... Kf6 {[%clk
0:00:06.6]} 76. Rf8+ {[%clk 0:00:22.2]} 76... Kg5 {[%clk 0:00:05.3]} 77. Ke6
{[%clk 0:00:22.2]} 77... Ra7 {[%clk 0:00:05.3]} 78. d7 {[%clk 0:00:22.6]} 78...
Ra6+ {[%clk 0:00:04.5]} 79. Ke5 {[%clk 0:00:22.5]} 79... Ra5+ {[%clk 0:00:04.7]}
80. Kd4 {[%clk 0:00:22.9]} 80... Ra4+ {[%clk 0:00:04.9]} 81. Ke3 {[%clk
0:00:23.4]} 81... Ra3+ {[%clk 0:00:05.1]} 82. Kf2 {[%clk 0:00:24]} 82... Ra2+
{[%clk 0:00:05.5]} 83. Kg1 {[%clk 0:00:24.4]} 83... Ra1+ {[%clk 0:00:05.7]} 84.
Kg2 {[%clk 0:00:25]} 84... Ra2+ {[%clk 0:00:05.6]} 85. Kh3 {[%clk 0:00:25.6]}
85... Rd2 {[%clk 0:00:05.6]} 86. d8=Q+ {[%clk 0:00:25.4]} 1-0

[Event "*** Titled Tuesday Blitz"]
[Site "Chess.com"]
[Date "2020.04.14"]
[Round "8"]
[White "kingandqueen2017"]
[Black "IljaJoke"]
[Result "0-1"]
[WhiteElo "2355"]
[BlackElo "2516"]
[TimeControl "180+1"]
[EndTime "11:31:42 PDT"]
[Termination "IljaJoke won by checkmate"]

1. d4 {[%clk 0:03:00.9]} 1... Nf6 {[%clk 0:02:59.9]} 2. c4 {[%clk 0:02:59.6]}
2... c5 {[%clk 0:02:59.7]} 3. d5 {[%clk 0:02:58.8]} 3... g6 {[%clk 0:03:00.1]}
4. Nc3 {[%clk 0:02:58.5]} 4... Bg7 {[%clk 0:03:01]} 5. e4 {[%clk 0:02:58.4]}
5... d6 {[%clk 0:03:01.6]} 6. Nf3 {[%clk 0:02:58.4]} 6... O-O {[%clk 0:03:01.9]}
7. h3 {[%clk 0:02:58.5]} 7... e6 {[%clk 0:03:02]} 8. Bd3 {[%clk 0:02:58.4]} 8...
Nbd7 {[%clk 0:03:01.9]} 9. O-O {[%clk 0:02:57.4]} 9... e5 {[%clk 0:03:01.6]} 10.
a3 {[%clk 0:02:54.1]} 10... h6 {[%clk 0:03:01.1]} 11. b4 {[%clk 0:02:53.8]}
11... Nh7 {[%clk 0:03:01.5]} 12. Re1 {[%clk 0:02:44.7]} 12... b6 {[%clk
0:03:01.2]} 13. Bd2 {[%clk 0:02:41.1]} 13... Ndf6 {[%clk 0:03:01.4]} 14. Rb1
{[%clk 0:02:36.7]} 14... Nh5 {[%clk 0:03:01.5]} 15. Qc1 {[%clk 0:02:34.8]} 15...
Qf6 {[%clk 0:02:57.6]} 16. Ne2 {[%clk 0:02:27.1]} 16... Bxh3 {[%clk 0:02:55.8]}
17. Bxh6 {[%clk 0:02:25.7]} 17... Bg4 {[%clk 0:02:16.7]} 18. Nh2 {[%clk
0:02:17.2]} 18... Bc8 {[%clk 0:02:10.5]} 19. Be3 {[%clk 0:02:11.6]} 19... g5
{[%clk 0:02:02.8]} 20. g3 {[%clk 0:02:04.7]} 20... Nf4 {[%clk 0:02:00.9]} 21.
gxf4 {[%clk 0:02:01.7]} 21... gxf4 {[%clk 0:02:01.2]} 22. Nxf4 {[%clk
0:01:58.8]} 22... exf4 {[%clk 0:02:00.5]} 23. Bxf4 {[%clk 0:01:59.2]} 23... Bh3
{[%clk 0:01:44]} 24. e5 {[%clk 0:01:53.1]} 24... Qh4 {[%clk 0:01:25.1]} 25. Bg3
{[%clk 0:01:41.9]} 25... Qh5 {[%clk 0:01:17.4]} 26. exd6 {[%clk 0:01:33]} 26...
Bd4 {[%clk 0:01:15.7]} 27. Bxh7+ {[%clk 0:01:22.4]} 27... Kxh7 {[%clk 0:01:14]}
28. Qf4 {[%clk 0:01:14]} 28... Rg8 {[%clk 0:01:10.4]} 29. Nf3 {[%clk 0:01:07.4]}
29... Rxg3+ {[%clk 0:00:58.3]} 30. Qxg3 {[%clk 0:01:05.7]} 30... Rg8 {[%clk
0:00:58.3]} 31. Nxd4 {[%clk 0:01:02.1]} 31... cxd4 {[%clk 0:00:44.3]} 32. Re4
{[%clk 0:00:54.7]} 32... Rxg3+ {[%clk 0:00:31.3]} 33. fxg3 {[%clk 0:00:55.6]}
33... Qf3 {[%clk 0:00:23.5]} 34. Rh4+ {[%clk 0:00:55.1]} 34... Kg7 {[%clk
0:00:23.4]} 35. Rxh3 {[%clk 0:00:55.6]} 35... Qe3+ {[%clk 0:00:23.4]} 36. Kh2
{[%clk 0:00:52.6]} 36... Qe2+ {[%clk 0:00:20.2]} 37. Kg1 {[%clk 0:00:51.9]}
37... Qe3+ {[%clk 0:00:16.1]} 38. Kh2 {[%clk 0:00:51.8]} 38... Qf2+ {[%clk
0:00:16.7]} 39. Kh1 {[%clk 0:00:50.5]} 39... Qf5 {[%clk 0:00:17.2]} 40. Rh4
{[%clk 0:00:40.4]} 40... Qxb1+ {[%clk 0:00:17]} 41. Kg2 {[%clk 0:00:40.3]} 41...
Qc2+ {[%clk 0:00:16.7]} 42. Kg1 {[%clk 0:00:39.2]} 42... Qd1+ {[%clk 0:00:16.5]}
43. Kg2 {[%clk 0:00:37.5]} 43... Qe2+ {[%clk 0:00:16.7]} 44. Kg1 {[%clk
0:00:37.6]} 44... Qe3+ {[%clk 0:00:16.1]} 45. Kh2 {[%clk 0:00:34.8]} 45... Qf2+
{[%clk 0:00:14.7]} 46. Kh3 {[%clk 0:00:33.8]} 46... Qf5+ {[%clk 0:00:14.1]} 47.
Kh2 {[%clk 0:00:33.8]} 47... d3 {[%clk 0:00:12.9]} 48. Rf4 {[%clk 0:00:33.2]}
48... Qd7 {[%clk 0:00:11.9]} 49. Rd4 {[%clk 0:00:32.8]} 49... Qxd6 {[%clk
0:00:11.9]} 50. Rxd3 {[%clk 0:00:33.2]} 50... Kf8 {[%clk 0:00:11]} 51. Kg2
{[%clk 0:00:29.6]} 51... Ke7 {[%clk 0:00:11.3]} 52. Kf3 {[%clk 0:00:29.8]} 52...
Kd7 {[%clk 0:00:11.5]} 53. Ke4 {[%clk 0:00:29.5]} 53... Qg6+ {[%clk 0:00:11.6]}
54. Kd4 {[%clk 0:00:29.7]} 54... Qf6+ {[%clk 0:00:12.1]} 55. Ke3 {[%clk
0:00:27.8]} 55... Qe5+ {[%clk 0:00:11.7]} 56. Kd2 {[%clk 0:00:27]} 56... f5
{[%clk 0:00:11.8]} 57. Kc2 {[%clk 0:00:26.4]} 57... Qe4 {[%clk 0:00:11.6]} 58.
Kc3 {[%clk 0:00:26.6]} 58... Kd6 {[%clk 0:00:11.8]} 59. a4 {[%clk 0:00:18.3]}
59... a5 {[%clk 0:00:11.8]} 60. bxa5 {[%clk 0:00:16.8]} 60... bxa5 {[%clk
0:00:12.7]} 61. Rd4 {[%clk 0:00:15.5]} 61... Qe5 {[%clk 0:00:12.8]} 62. Kd3
{[%clk 0:00:15]} 62... Kc5 {[%clk 0:00:13.2]} 63. Rf4 {[%clk 0:00:14.7]} 63...
Qb2 {[%clk 0:00:12.6]} 64. d6 {[%clk 0:00:12.2]} 64... Kxd6 {[%clk 0:00:09.6]}
65. Rd4+ {[%clk 0:00:12.4]} 65... Kc6 {[%clk 0:00:08.2]} 66. Rd5 {[%clk
0:00:12.7]} 66... Qb1+ {[%clk 0:00:08.3]} 67. Kd4 {[%clk 0:00:12.7]} 67... Qe4+
{[%clk 0:00:08.7]} 68. Kc3 {[%clk 0:00:12.6]} 68... Qe3+ {[%clk 0:00:09.1]} 69.
Rd3 {[%clk 0:00:12]} 69... Qe5+ {[%clk 0:00:09]} 70. Kb3 {[%clk 0:00:11.7]}
70... Qe4 {[%clk 0:00:09.1]} 71. Rd5 {[%clk 0:00:11.8]} 71... Qf3+ {[%clk
0:00:08.8]} 72. Kb2 {[%clk 0:00:11.8]} 72... Qxg3 {[%clk 0:00:09.1]} 73. Rxf5
{[%clk 0:00:11.9]} 73... Qh2+ {[%clk 0:00:07.6]} 74. Kc1 {[%clk 0:00:09.2]}
74... Qg1+ {[%clk 0:00:07.8]} 75. Kb2 {[%clk 0:00:09.1]} 75... Qd4+ {[%clk
0:00:07.7]} 76. Ka3 {[%clk 0:00:01.9]} 76... Qc3+ {[%clk 0:00:07.6]} 77. Ka2
{[%clk 0:00:01.8]} 77... Qc2+ {[%clk 0:00:08]} 78. Ka3 {[%clk 0:00:02.1]} 78...
Qxf5 {[%clk 0:00:08.9]} 79. Kb2 {[%clk 0:00:02]} 79... Kc5 {[%clk 0:00:09.2]}
80. Kc3 {[%clk 0:00:02.7]} 80... Qf3+ {[%clk 0:00:09.5]} 81. Kd2 {[%clk
0:00:03.2]} 81... Kxc4 {[%clk 0:00:09.8]} 82. Kc2 {[%clk 0:00:03.6]} 82... Qg2+
{[%clk 0:00:10]} 83. Kc1 {[%clk 0:00:04.1]} 83... Kc3 {[%clk 0:00:10.4]} 84. Kd1
{[%clk 0:00:04.6]} 84... Qd2# {[%clk 0:00:10.6]} 0-1

[Event "*** Titled Tuesday Blitz"]
[Site "Chess.com"]
[Date "2020.04.14"]
[Round "8"]
[White "DIM90"]
[Black "MoreChessJulia"]
[Result "1/2-1/2"]
[WhiteElo "2235"]
[BlackElo "1755"]
[TimeControl "180+1"]
[EndTime "11:31:42 PDT"]
[Termination "Game drawn - timeout vs insufficient material"]

1. e4 {[%clk 0:02:59.6]} 1... c6 {[%clk 0:02:59.8]} 2. Nc3 {[%clk 0:02:59.1]}
2... d5 {[%clk 0:02:59.6]} 3. Nf3 {[%clk 0:02:59.6]} 3... d4 {[%clk 0:02:58.2]}
4. Ne2 {[%clk 0:02:58.8]} 4... f6 {[%clk 0:02:56.6]} 5. Nexd4 {[%clk 0:02:57.8]}
5... e5 {[%clk 0:02:56.5]} 6. Nb3 {[%clk 0:02:56.1]} 6... Be6 {[%clk 0:02:55.7]}
7. d4 {[%clk 0:02:55.5]} 7... Nd7 {[%clk 0:02:46.9]} 8. c4 {[%clk 0:02:52.8]}
8... Bb4+ {[%clk 0:02:43.4]} 9. Bd2 {[%clk 0:02:51.9]} 9... a5 {[%clk
0:02:42.3]} 10. d5 {[%clk 0:02:50.9]} 10... Bf7 {[%clk 0:02:41.3]} 11. Bxb4
{[%clk 0:02:47.7]} 11... axb4 {[%clk 0:02:41]} 12. dxc6 {[%clk 0:02:40.2]} 12...
bxc6 {[%clk 0:02:40.5]} 13. Qd6 {[%clk 0:02:40.4]} 13... Qb6 {[%clk 0:02:34]}
14. O-O-O {[%clk 0:02:37.2]} 14... O-O-O {[%clk 0:02:30.6]} 15. c5 {[%clk
0:02:30.8]} 15... Qc7 {[%clk 0:02:25.5]} 16. Ba6+ {[%clk 0:02:28.3]} 16... Kb8
{[%clk 0:02:24.4]} 17. Na5 {[%clk 0:02:25.2]} 17... Qxd6 {[%clk 0:02:20.9]} 18.
Rxd6 {[%clk 0:02:15.6]} 18... Ne7 {[%clk 0:02:14]} 19. Rhd1 {[%clk 0:02:10.2]}
19... Kc7 {[%clk 0:02:03.6]} 20. Nb7 {[%clk 0:02:06.2]} 20... Bxa2 {[%clk
0:01:50.7]} 21. Nxd8 {[%clk 0:02:03.6]} 21... Rxd8 {[%clk 0:01:49.9]} 22. R1d3
{[%clk 0:01:39.5]} 22... Bf7 {[%clk 0:01:38.8]} 23. b3 {[%clk 0:01:28.4]} 23...
Be8 {[%clk 0:01:31.7]} 24. Bc4 {[%clk 0:01:23.4]} 24... Nc8 {[%clk 0:01:30.9]}
25. Re6 {[%clk 0:01:14.5]} 25... Nxc5 {[%clk 0:01:28.4]} 26. Rxd8 {[%clk
0:01:13.2]} 26... Kxd8 {[%clk 0:01:27.6]} 27. Rxe8+ {[%clk 0:01:03.9]} 27...
Kxe8 {[%clk 0:01:26.3]} 28. Nd2 {[%clk 0:01:04.5]} 28... Nd6 {[%clk 0:01:24.6]}
29. f3 {[%clk 0:01:03.5]} 29... Nxc4 {[%clk 0:01:22.4]} 30. bxc4 {[%clk
0:01:03.6]} 30... Nd3+ {[%clk 0:01:20.8]} 31. Kc2 {[%clk 0:01:03]} 31... Ne1+
{[%clk 0:01:19.8]} 32. Kb3 {[%clk 0:01:03.1]} 32... c5 {[%clk 0:01:15.7]} 33. g3
{[%clk 0:01:03]} 33... Kd7 {[%clk 0:01:00.5]} 34. f4 {[%clk 0:01:00]} 34... exf4
{[%clk 0:00:54.7]} 35. gxf4 {[%clk 0:00:59.7]} 35... Nd3 {[%clk 0:00:54.4]} 36.
f5 {[%clk 0:00:56.1]} 36... Kd6 {[%clk 0:00:53.2]} 37. Nf3 {[%clk 0:00:52.2]}
37... Ne5 {[%clk 0:00:46.9]} 38. Nh4 {[%clk 0:00:48.9]} 38... g5 {[%clk
0:00:42.5]} 39. fxg6 {[%clk 0:00:39.3]} 39... hxg6 {[%clk 0:00:42.1]} 40. Ng2
{[%clk 0:00:37.3]} 40... g5 {[%clk 0:00:40.9]} 41. Ne3 {[%clk 0:00:37.2]} 41...
Nf3 {[%clk 0:00:36.7]} 42. h3 {[%clk 0:00:36.9]} 42... Ng1 {[%clk 0:00:35.3]}
43. Ng4 {[%clk 0:00:32.2]} 43... Nxh3 {[%clk 0:00:30.1]} 44. Nxf6 {[%clk
0:00:32.1]} 44... Nf2 {[%clk 0:00:29.8]} 45. Nd5 {[%clk 0:00:22.9]} 45... Nxe4
{[%clk 0:00:27.4]} 46. Ne3 {[%clk 0:00:20.3]} 46... Nf2 {[%clk 0:00:23.1]} 47.
Kc2 {[%clk 0:00:16.4]} 47... g4 {[%clk 0:00:22.5]} 48. Kd2 {[%clk 0:00:15.3]}
48... g3 {[%clk 0:00:19.5]} 49. Nf5+ {[%clk 0:00:14.9]} 49... Ke5 {[%clk
0:00:18.3]} 50. Nxg3 {[%clk 0:00:15.6]} 50... Kd4 {[%clk 0:00:18.5]} 51. Kc2
{[%clk 0:00:13]} 51... Kxc4 {[%clk 0:00:16.8]} 52. Nf5 {[%clk 0:00:13]} 52...
Ne4 {[%clk 0:00:15.9]} 53. Ne3+ {[%clk 0:00:12.5]} 53... Kb5 {[%clk 0:00:15.6]}
54. Nf5 {[%clk 0:00:12.9]} 54... c4 {[%clk 0:00:14.9]} 55. Nd4+ {[%clk
0:00:13.2]} 55... Kc5 {[%clk 0:00:14.7]} 56. Ne6+ {[%clk 0:00:13]} 56... Kb6
{[%clk 0:00:14.5]} 57. Nf4 {[%clk 0:00:11.5]} 57... b3+ {[%clk 0:00:14.3]} 58.
Kb2 {[%clk 0:00:11.4]} 58... Kb5 {[%clk 0:00:13.7]} 59. Nd5 {[%clk 0:00:11.1]}
59... Nc5 {[%clk 0:00:12.4]} 60. Nc3+ {[%clk 0:00:10.1]} 60... Kb4 {[%clk
0:00:11.2]} 61. Nd5+ {[%clk 0:00:10.3]} 61... Ka5 {[%clk 0:00:10.9]} 62. Kc3
{[%clk 0:00:09.2]} 62... Ne4+ {[%clk 0:00:09.8]} 63. Kxc4 {[%clk 0:00:07.6]}
63... b2 {[%clk 0:00:09.9]} 64. Kd4 {[%clk 0:00:06.2]} 64... b1=Q {[%clk
0:00:09.5]} 65. Ke5 {[%clk 0:00:06.4]} 65... Qd3 {[%clk 0:00:08.9]} 66. Ke6
{[%clk 0:00:03.9]} 66... Nc3 {[%clk 0:00:08.5]} 67. Ne7 {[%clk 0:00:02.6]} 67...
Qe4+ {[%clk 0:00:08.1]} 68. Kd6 {[%clk 0:00:02.2]} 68... Qh7 {[%clk 0:00:05.9]}
69. Nc6+ {[%clk 0:00:01.4]} 69... Kb6 {[%clk 0:00:05.2]} 70. Nd4 {[%clk
0:00:02]} 70... Qg6+ {[%clk 0:00:03.4]} 71. Ne6 {[%clk 0:00:02.5]} 71... Ne4+
{[%clk 0:00:01.6]} 72. Ke5 {[%clk 0:00:03.2]} 72... Nc5 {[%clk 0:00:01.4]} 73.
Nd4 {[%clk 0:00:03.7]} 1/2-1/2